Cogmind - Beta 16.1 @@@ ROGUE MODE // 2026.02.21 @ 23:26:51 Player: stevie364 Result: Destroyed by NJ-Z0C(R) with Subdweller Machine Gun Performance ------------- Evolutions (0) 0 Regions Visited (2) 400 Robots Destroyed (15) 75 Value Destroyed (325) 325 Prototype IDs (0) 0 Alien Tech Used (0) 0 Bonus (0) 0 TOTAL SCORE: 800 Bonus ------- None Cogmind --------- Core Integrity 0/250 Matter 265/300 Energy 104/125 System Corruption 0% Temperature Cool (6) Movement Treading (160) Location -10/Subcaves Parts ------- > --- POWER (1) -------- Light Ion Engine > --- PROPULSION (2) --- Light Treads Light Treads > --- UTILITY (2) ------ Large Storage Unit > --- WEAPON (2) ------- Small Laser Light Assault Rifle > --- INVENTORY (15) --- Compact Wheel Flight Unit Flight Unit Flight Unit Flight Unit Small Storage Unit Sensor Array ECM Suite Scrap Shield Grenade Launcher Peak State ------------ > --- POWER ------------ Light Ion Engine > --- PROPULSION ------- Light Treads Light Treads > --- UTILITY ---------- Large Storage Unit Seismic Detector > --- WEAPON ----------- Light Assault Rifle Light Assault Rifle > --- INVENTORY -------- Light Ion Engine Compact Wheel Flight Unit Flight Unit Flight Unit Flight Unit Small Storage Unit Sensor Array ECM Suite Grenade Launcher [Rating: 8] Favorites ----------- Power Light Ion Engine Engine Light Ion Engine Propulsion Light Treads Treads Light Treads Utility Seismic Detector Device Seismic Detector Storage Large Storage Unit Weapon Light Assault Rifle Energy Gun Small Laser Ballistic Gun Light Assault Rifle Build | -11 -10 -10 ------- Run | Yrd Mat Sub Slots Evolved . | . . . Power . | . . . Propulsion . | . . . Utility . | . . . Weapon . | . . . Parts Attached 14 | 7 5 2 Power 3 | 1 2 . Engine 3 | 1 2 . Core . | . . . Reactor . | . . . Propulsion 3 | 2 1 . Treads 3 | 2 1 . Leg . | . . . Wheel . | . . . Hover . | . . . Flight . | . . . Utility 3 | 2 1 . Device 1 | 1 . . Storage 2 | 1 1 . Processor . | . . . Hackware . | . . . Protection . | . . . Artifact . | . . . Weapon 5 | 2 1 2 Energy Gun 1 | . . 1 Energy Cannon . | . . . Ballistic Gun 4 | 2 1 1 Ballistic Cannon . | . . . Launcher . | . . . Special Weapon . | . . . Impact Weapon . | . . . Slashing Weapon . | . . . Piercing Weapon . | . . . Special Melee Weapon . | . . . Unidentified Prototypes . | . . . Parts Lost 7 | . 2 5 Power 2 | . 1 1 Propulsion 1 | . . 1 Utility 1 | . . 1 Weapon 3 | . 1 2 Highest Loss Streak 5 | . 2 5 To Critical Strikes . | . . . Average Backups 7 | . 6 13 Power . | . . . Propulsion 3 | . 2 5 Utility 1 | . 1 3 Weapon 1 | . 1 2 Tool/Special . | . . . Unused Backups 9 | . . 9 Power . | . . . Propulsion 5 | . . 5 Utility 3 | . . 3 Weapon 1 | . . 1 Tool/Special . | . . . Average Slot Usage (%) 99 | . 99 100 Engine 13 | . 13 14 Treads 28 | . 28 28 Device 14 | . 14 14 Storage 14 | . 14 14 Ballistic Gun 27 | . 27 27 Peak Build Rating 8 | 7 8 8 Average Rating 7 | 5 7 7 On Entrance 5 | . 7 8 Avg Prop Armor Cover (%) . | . . . Naked Turns . | . . . Heaviest Build 26 | 12 26 26 Greatest Support 40 | 40 40 40 Greatest Overweight (x) . | . . . Average Overweight (x) . | . . . Largest Inventory Capacity 15 | 8 15 15 Average Capacity 11 | 7 11 15 Most Carried 15 | 1 13 15 Average Carried 7 | . 6 14 Final Capacity 15 | 8 15 15 Final Carried 13 | 1 13 11 Class Distribution -------------------- 100% | Mutant Dominant Class ---------------- Mutant | -10/Materials Mutant | -10/Subcaves Resources | -11 -10 -10 ----------- Run | Yrd Mat Sub Matter Collected 466 | 279 187 . Remotely . | . . . Salvage Created 555 | 109 446 . Parts 36 | 4 32 . Haulers Intercepted 2 | . 2 . Recyclers Shooed . | . . . Parts Field Recycled . | . . . Retrieved Matter . | . . . Parts Self-Destructed . | . . . Prevented . | . . . Parts Restored . | . . . Kills | -11 -10 -10 ------- Run | Yrd Mat Sub Combat Hostiles Destroyed 10 | . 10 . Guns 10 | . 10 . Classes Destroyed 5 | 2 3 . Tunneler 2 | 2 . . Hauler 2 | . 2 . Recycler 1 | 1 . . Swarmer 3 | . 3 . Grunt 7 | . 7 . Best Kill Streak 3 | 1 3 . Combat Bots Only 3 | . 3 . Max Kills in Single Turn 1 | 1 1 . Gunslinging . | . . . Exploded . | . . . Melee . | . . . Uniques/NPCs Destroyed . | . . . Combat | -11 -10 -10 -------- Run | Yrd Mat Sub Hostile Shots Fired 108 | . 66 42 Missed 29 | . 16 13 Hits 79 | . 50 29 Projectile 79 | . 50 29 Critical Strikes 1 | . 1 . Damage Taken 1178 | . 554 624 Core 260 | . 91 169 Absorbed by Shields . | . . . Core Remaining (%) 100 | 100 . . Volleys Fired 63 | 9 44 10 Largest 2 | 2 2 2 Hottest 60 | 40 40 60 Shots Fired 118 | 18 80 20 Gun 118 | 18 80 20 Cannon . | . . . Launcher . | . . . Special . | . . . Kinetic 117 | 18 80 19 Thermal 1 | . . 1 Explosive . | . . . Electromagnetic . | . . . Robot Hit Streak 14 | 8 7 14 Robot Miss Streak 5 | 1 5 1 Penetration Max . | . . . Secondary Targets 2 | . 2 . Max Gunslinging Chain 1 | . 1 . Shots Hit Robots 79 | 13 48 18 Core Hits 39 | 6 28 5 Critical Kills . | . . . Critical Parts Destroyed . | . . . Critical Strikes . | . . . Melee Attacks . | . . . Impact . | . . . Slashing . | . . . Piercing . | . . . Sneak Attacks . | . . . Combat Hostiles . | . . . Follow-up Attacks . | . . . Damage Inflicted 801 | 142 501 158 Guns 758 | 142 458 158 Cannons . | . . . Explosions 43 | . 43 . Melee . | . . . Ramming . | . . . Kinetic 746 | 142 458 146 Thermal 12 | . . 12 Explosive . | . . . Electromagnetic 43 | . 43 . Impact . | . . . Slashing . | . . . Piercing . | . . . Highest Corruption . | . . . Average Corruption . | . . . Corruption Purged . | . . . Corruption Blocked . | . . . Overload Shots . | . . . Overflow Damage . | . . . Projectiles . | . . . Explosions . | . . . Melee . | . . . Knockbacks . | . . . Impact . | . . . Kinetic . | . . . Secondary . | . . . Self-Inflicted Damage 53 | . 53 . Shots 2 | . 2 . Rammed . | . . . Targets Rammed . | . . . Kicked . | . . . Crushed . | . . . Highest Temperature 36 | . 36 . Average Temperature 10 | . 10 . Received Heat Transfer 255 | . 177 78 Siege Activations . | . . . Martial Activations . | . . . Shielding Activations . | . . . Robots Disrupted . | . . . Combat Hostiles . | . . . Robots Corrupted . | . . . Combat Hostiles . | . . . Parts Fried . | . . . Impact Corruptions . | . . . Robots Melted . | . . . Combat Hostiles . | . . . Parts Melted . | . . . Heat Transferred 25 | . . 25 Parts Sabotaged . | . . . Parts Stolen . | . . . Parts Stripped . | . . . Power Chain Reactions 1 | . 1 . Alert | -11 -10 -10 ------- Run | Yrd Mat Sub Maximum Alert Level . | . . . Low Security (%) 100 | 100 100 . Level 1 . | . . . Level 2 . | . . . Level 3 . | . . . Level 4 . | . . . Level 5 . | . . . High Security . | . . . Max Security . | . . . Peak Influence 147 | 5 147 . Initial . | . . . Average 52 | 1 59 . Influence Increases 335 | 15 320 . Destroy 0b10 Robot/C 200 | . 200 . Destroy 0b10 Robot/NC 25 | 15 10 . Destroy Leader 34 | . 34 . Successful Hack 11 | . 11 . Disable Machine 30 | . 30 . Destroy Structure 5 | . 5 . Lose Combat Pursuer 30 | . 30 . Influence Decreases 335 | 15 238 82 Entered New Map 40 | . . 40 Time Decay 275 | 15 218 42 Lost Part 20 | . 20 . Squads Dispatched 3 | . 3 . Investigation 2 | . 2 . Extermination . | . . . Reinforcement 1 | . 1 . Assault . | . . . Garrison . | . . . Intercept . | . . . Searches Triggered . | . . . Construction Impeded . | . . . Haulers Reinforced . | . . . Active Scanning Responses . | . . . Cargo Convoy Interrupts . | . . . Stealth | -11 -10 -10 --------- Run | Yrd Mat Sub Distress Signals 2 | . 2 . Communications Jammed . | . . . Distress Signals . | . . . Times Spotted 28 | . 19 9 Peak Tracking Total 8 | . 4 8 Tactical Retreats 2 | . 2 . Traps | -11 -10 -10 ------- Run | Yrd Mat Sub Traps Triggered 2 | . 2 . Indirectly . | . . . Trap Hack Attempts . | . . . Triggered . | . . . Disarmed . | . . . Reprogrammed . | . . . Reused . | . . . Traps Extracted . | . . . Installed . | . . . Triggered . | . . . Machines | -11 -10 -10 ---------- Run | Yrd Mat Sub Machines Disabled 2 | . 2 . Max in Single Turn 2 | . 2 . Machines Repaired . | . . . Machines Dismantled . | . . . Machines Sabotaged . | . . . Overloaded Fab Kills . | . . . Hacking | -11 -10 -10 --------- Run | Yrd Mat Sub Machines Accessed 4 | . 4 . Terminals 4 | . 4 . Fabricators . | . . . Repair Stations . | . . . Recycling Units . | . . . Scanalyzers . | . . . Garrison Access . | . . . Total Hacks 14 | . 14 . Successful 10 | . 10 . Failed 4 | . 4 . Catastrophic 1 | . 1 . Database Lockouts . | . . . Manual 4 | . 4 . Terminals 14 | . 14 . Fabricators . | . . . Repair Stations . | . . . Recycling Units . | . . . Scanalyzers . | . . . Garrison Access . | . . . Terminal Hacks 9 | . 9 . Record 5 | . 5 . Alert Level 1 | . 1 . Reinforcement Status 1 | . 1 . Zone Layout 2 | . 2 . Fabricator Hacks . | . . . Repair Station Hacks . | . . . Recycling Unit Hacks . | . . . Scanalyzer . | . . . Garrison Access Hacks . | . . . Unauthorized Hacks 1 | . 1 . Terminals 1 | . 1 . Botnet 1 | . 1 . Fabricators . | . . . Repair Stations . | . . . Recycling Units . | . . . Scanalyzers . | . . . Garrison Access . | . . . Data Cores Recovered . | . . . Used . | . . . Hacking Detections 3 | . 3 . Full Trace Events . | . . . Feedback Events . | . . . Feedback Blocked . | . . . Robot Schematics Acquired . | . . . Robots Built . | . . . Authchips . | . . . Time . | . . . Total Robot Build Rating . | . . . Part Schematics Acquired . | . . . Parts Built . | . . . Authchips . | . . . Time . | . . . Total Part Build Rating . | . . . Part Studies Acquired . | . . . Parts Repaired . | . . . Time . | . . . Parts Recycled . | . . . Recycled Matter . | . . . Retrieved Matter . | . . . Retrieved Components . | . . . Parts Scanalyzed . | . . . Part Schematics Acquired . | . . . Parts Damaged . | . . . Bothacking | -11 -10 -10 ------------ Run | Yrd Mat Sub Used RIF Installer . | . . . Robots Hacked . | . . . Non-combat . | . . . Combat . | . . . Robot Hacks Applied . | . . . Relay Couplers Released . | . . . Fabnet Peak Effective % . | . . . Robots Rewired . | . . . Allies Hacked . | . . . Hacks Repelled . | . . . Allies | -11 -10 -10 -------- Run | Yrd Mat Sub Total Allies . | . . . Largest Group . | . . . Highest-Rated Group . | . . . Highest-Rated Ally . | . . . Total Orders . | . . . Ally Attacks . | . . . Total Damage . | . . . Kills . | . . . Allies Corrupted . | . . . Allies Melted . | . . . Intel | -11 -10 -10 ------- Run | Yrd Mat Sub Active Infowar (turns) 1219 | 50 950 219 Seismic 1219 | 50 950 219 Robot Analysis Total . | . . . Derelict Logs Recovered . | . . . Drone Launches . | . . . Drone Recoveries . | . . . Exploration | -11 -10 -10 ------------- Run | Yrd Mat Sub Turns Passed 1302 | 130 950 222 Spaces Moved 586 | 61 414 111 Core 3 | 3 . . Treads 583 | 58 414 111 Legs . | . . . Wheels . | . . . Hover . | . . . Flight . | . . . Fastest Speed 50 | 50 160 160 Average Speed 159 | 154 160 160 Slowest Speed 160 | 160 160 160 Overloaded Moves . | . . . Propulsion Burnouts . | . . . Robots Hopped . | . . . Potential Cave-ins . | . . . Cave-ins Triggered . | . . . Exploration Rate (%) 23 | 3 59 7 Regions Visited 2 Branch Regions 1 Pre-discovered Areas . | . . . Known Exits Taken . | . . . Unknown Exits Taken 2 | 1 1 . Scrap Searched . | . . . Spaces Dug . | . . . Terrain Destroyed 4 | . 4 . Melee . | . . . Projectile . | . . . AOE 4 | . 4 . Terrain Rammed . | . . . Walls Destroyed . | . . . Machines Disabled . | . . . Actions | -11 -10 -10 --------- Run | Yrd Mat Sub Total 847 | 77 631 139 Wait 173 | . 160 13 Move 584 | 60 413 111 Hop . | . . . Pick Up 11 | 1 9 1 Fast Attach 9 | 7 2 . Attach 4 | . . 4 Detach . | . . . Swap 3 | . 3 . Drop . | . . . Fire 63 | 9 44 10 Melee . | . . . Ram . | . . . Kick . | . . . Crush . | . . . Escape Stasis . | . . . Rewire . | . . . Trap . | . . . Miscellaneous . | . . . Route ------- -11/Scrapyard -10/Materials (discovered 3 exits: [*Mat] / [*Min] / [*Sub]) -10/Subcaves History --------- Turn | Location | Event 8 | -11/Scrapyard | Discovered new exit (range 15) 131 | -11/Scrapyard | Entered Materials 303 | -10/Materials | Build established: Mutant 386 | -10/Materials | Discovered new exit (range 16) 497 | -10/Materials | Discovered new exit (range 8) 607 | -10/Materials | Discovered new exit (range 8) 1081 | -10/Materials | Entered Subcaves 1082 | -10/Subcaves | Approached by a straggling Scientist 1273 | -10/Subcaves | Ambushed by swarm of Subdwellers 1273 | -10/Subcaves | Ambushed by Subdwellers from Twisted Machinery 1283 | -10/Subcaves | Core integrity fell below 50% 1299 | -10/Subcaves | Core integrity fell below 20% 1303 | -10/Subcaves | Destroyed by NJ-Z0C(R) with Subdweller Machine Gun Last Messages --------------- 01279_ DF-OL2(h) suffers critical hit (Destroy). 01279_ DF-OL2(h) destroyed. 01283_ RF-M0W(R) destroyed. IM-CDD(c): "I think it's somewhere west of here" 01286_ E3-LS1(R) destroyed. 01286_ ZH-OY3(g) destroyed. 01288_ NJ-Z0C(R) affixes Scrap Shield Fragment to Scrap Shield. 01289_ K7-218(R) destroyed. 01291_ WW-D9A(g) destroyed. 01293_ Lgt. Ion Engine destroyed. 01295_ Lgt. Treads destroyed. 01297_ I5-3ZZ(R) affixes Scrap Shield Fragment to Scrap Shield. 01298_ Lgt. Assault Rifle destroyed. 01300_ A3-TYX(g) destroyed. 01300_ Seismic Detector destroyed. 01301_ Subatomizers dissect the Sub. Power Source. 01302_ I5-3ZZ(R) destroyed. Map ----- +----------------------------------------------------+ | ????????????????????# # # | | ????????????????????# ## | | ????????????????????# ### # ? | | ????????????????????# ### # ### # ##????? | | ????????????????????## ## ##?### #?????? | | ????????????????????## ### ##????# ##?????? | | ????????????????????# #?# #?????# #??????? | | ????????????????????# ### ????# #??????? | | ????????????????????### ### ???## ##??????? | | ??????????????????????# ## ??## #???????? | | ??????????????????????## ### ## #???????? | | ???????????????????????##### ## #####???????? | | ??????????????????????????# ### #???????????? | | ?????????????????????????## #### ##??????????? | | ?????????????????????????# #?## #??????????? | | ?????????????????????????# #### #?#????????? | | ??????????????????????????# ## # #????????? | | ?????????????????????????????# #????????? | | ?????????????????????????????# ##????????? | | ????????????????????????????## ###?????????? | | ????????????????????????????# ##??????????? | | ??????????????????#????####### #??????????? | | ??????????????????? ?## ### #??????????? | | ????????????????????# # # ## #??????????? | | ????????????????????# =### #####??????????? | | ??????????????????????#< @%### #??????????????? | | ??????????????????????# R[%!=!% #??????????????? | | ??????????????????????###!=%!!*[ #??????????????? | | ???????????????????????#!&%R*! #??????????????? | | ???????????????????????#&R###R ##??????????????? | | ??????????????????????# %""?# ##???????????????? | | ?????????????????????# ##?# #????????????????? | | ????????????????????# ??? #????????????????? | | ???????????????????# ??? #????????????????? | | ??????????????????# ??? #????????????????? | | ?????????????????# ??? #????????????????? | | ????????????????? ?? ## ????????????????? | | ???????????????? ??#?? #????????????????? | | ????????????????? ### #?????? #????????????????? | | ????????????????????# ??????? #????????????????? | | ?????????????????????? ??????? ????????????????? | | ?????????????????????????????? #????????????????? | | ?????????????????????????????? ?????????????????? | | ?????????????????????????????????????????????????? | | ?????????????????????????????????????????????????? | | ?????????????????????????????????????????????????? | | ?????????????????????????????????????????????????? | | ?????????????????????????????????????????????????? | | ?????????????????????????????????????????????????? | | ?????????????????????????????????????????????????? | +----------------------------------------------------+ Best States ------------- Heat Dissipation 25 Energy Generation 10 Energy Capacity 250 Matter Stores 300 Matter Capacity 300 Sight Range 16 Terrain Scan Density 10 Evasion (%) 40 Recoil Reduction 2 Item Schematics ----------------- None Robot Schematics ------------------ None Fabricated ------------ Nothing Repaired ---------- Nothing Studied --------- None Alien Tech Used ----------------- None Achievements -------------- DATA ERROR: Steam Global Achievement% Storm Trooper True Hacker Challenges ------------ None Game ------ Seed TitaniumMagneticInitializer Manual? 0 Play Time 00:12:19 Cumulative 3.4 hours Start 2026.02.21 @ 23:15:55 End 2026.02.21 @ 23:26:51 Sessions 1 Manual Loads 0 Difficulty Rogue Special Mode None Game No. 2 Rogue 2 Adventurer 0 Explorer 0 Win Type - Total 0 Types 0/0/0/0/0/0/0/0/0/0 Lore% 4 Gallery% 6 Achievement% 9 Wizard Run 0 Options --------- Layout 1 ASCII 0 Keyboard 0 Movement Mouse Keybinds 0 Fullscreen 2 Font 24/Smallcaps Map View 50x35 Zoom Use 0% Tactical HUD 1 Map Filters NONE Filters NONE Steam 1 RUN: afb317b9-cbee-4a7c-aa2a-ce188f7b7943